fUSD/lending_fUSD_20250403
["ID","MTS","AMOUNT","RATE_DAILY","PERIOD"]
[357057491,1743663150950,-514.06455943,0.00054794,120]
[357057492,1743663150992,-500.0,0.00054794,120]
[357057493,1743663151034,-500.0,0.00054794,120]
[357057494,1743663151080,-500.0,0.00054794,120]
[357057495,1743663151123,-500.0,0.00054794,120]
[357057496,1743663151167,-500.0,0.00054794,120]
[357057497,1743663151207,-506.96451926,0.00054794,120]
[357057498,1743663151250,-500.0,0.00054794,120]
[357057499,1743663151289,-500.0,0.00054794,30]
[357057500,1743663151328,-500.0,0.00054794,120]
[357057501,1743663151366,-500.0,0.00054794,120]
[357057502,1743663151407,-500.0,0.00054794,120]
[357057503,1743663151447,-500.0,0.00054794,120]
[357057504,1743663151487,-518.70695565,0.00054794,120]
[357057505,1743663151526,-220.95577067,0.00054794,120]
[357057506,1743663151565,-539.64979954,0.00054794,120]
[357057507,1743663151604,-500.0,0.00054794,120]
[357057508,1743663151643,-500.0,0.00054794,120]
[357057509,1743663151680,-500.0,0.00054794,120]
[357057510,1743663151719,-500.0,0.00054794,120]
[357057511,1743663151758,-504.24955854,0.00054794,120]
[357057512,1743663151796,-500.0,0.00054794,120]
[357057513,1743663151835,-364.18600269,0.00054794,120]
[357057514,1743663151873,-500.0,0.00054794,120]
[357057515,1743663151913,-500.0,0.00054794,120]
[357057516,1743663151952,-500.0,0.00054794,120]
[357057517,1743663152132,-500.0,0.00054794,120]
[357057518,1743663152175,-540.74,0.00054794,120]
[357057519,1743663152218,-500.0,0.00054794,120]
[357057520,1743663152257,-645.09727147,0.00054794,120]
[357057521,1743663152297,-512.85427411,0.00054794,120]
[357057522,1743663152335,-500.0,0.00054794,120]
[357057523,1743663152376,-501.56488271,0.00054794,120]
[357057524,1743663152414,-500.0,0.00054794,120]
[357057525,1743663152454,-503.51243078,0.00054794,120]
[357057526,1743663152495,-419.31096171,0.00054794,120]
[357057527,1743663152537,-502.08383559,0.00054794,120]
[357057528,1743663152577,-503.42293745,0.00054794,120]
[357057529,1743663152618,-502.54950676,0.00054794,120]
[357057530,1743663152659,-1284.91,0.00054794,120]
[357057531,1743663152700,-500.0,0.00054794,120]
[357057532,1743663152739,-503.5928175,0.00054794,120]
[357057533,1743663152780,-501.6628912,0.00054794,120]
[357057534,1743663152821,-622.39931237,0.00054794,120]
[357057535,1743663152860,-500.0,0.00054794,120]
[357057536,1743663152901,-581.64169191,0.00054794,120]
[357057537,1743663152942,-903.9,0.00054794,120]
[357057538,1743663152985,-500.0,0.00054794,120]
[357057539,1743663153028,-500.0,0.00054794,120]
[357057540,1743663153072,-500.0,0.00054794,120]
[357057541,1743663153117,-254.45544434,0.00054794,120]
[357057542,1743663153163,-500.0,0.00054794,120]
[357057543,1743663153209,-500.0,0.00054794,120]
[357057544,1743663153254,-529.91273679,0.00054794,120]
[357057545,1743663153296,-608.43046557,0.00054794,120]
[357057546,1743663153340,-500.0,0.00054794,120]
[357057547,1743663153382,-500.0,0.00054794,120]
[357057548,1743663153427,-500.0,0.00054794,120]
[357057549,1743663153470,-559.12703966,0.00054794,120]
[357057550,1743663153514,-500.0,0.00054794,120]
[357057551,1743663153557,-507.63871205,0.00054794,120]
[357057552,1743663153599,-500.0,0.00054794,120]
[357057553,1743663153641,-500.0,0.00054794,120]
[357057554,1743663153683,-621.85086127,0.00054794,120]
[357057555,1743663153724,-507.3819144,0.00054794,120]
[357057556,1743663153766,-500.0,0.00054794,120]
[357057557,1743663153810,-500.0,0.00054794,120]
[357057558,1743663153853,-500.0,0.00054794,120]
[357057559,1743663153896,-500.0,0.00054794,120]
[357057560,1743663153940,-500.0,0.00054794,120]
[357057561,1743663153983,-500.0,0.00054794,120]
[357057562,1743663154026,-500.0,0.00054794,120]
[357057563,1743663154067,-518.54397984,0.00054794,120]
[357057564,1743663154110,-500.0,0.00054794,120]
[357057565,1743663154157,-500.0,0.00054794,60]
[357057566,1743663154201,-533.70729755,0.00054794,120]
[357057567,1743663154246,-500.0,0.00054794,120]
[357057568,1743663154290,-500.0,0.00054794,120]
[357057569,1743663154331,-500.0,0.00054794,120]
[357057570,1743663154376,-500.0,0.00054794,120]
[357057571,1743663154418,-500.0,0.00054794,120]
[357057572,1743663154463,-500.0,0.00054794,120]
[357057573,1743663154505,-2483.67,0.00054794,120]
[357057574,1743663154547,-623.66468602,0.00054794,120]
[357057575,1743663154589,-534.91913416,0.00054794,120]
[357057576,1743663154629,-500.0,0.00054794,120]
[357057577,1743663154674,-404.432236,0.00054794,120]
[357057578,1743663154714,-500.0,0.00054794,120]
[357057579,1743663154757,-500.0,0.00054794,120]
[357057580,1743663154802,-3304.66,0.00054794,120]
[357057581,1743663154844,-624.21,0.00054794,120]
[357057582,1743663154886,-526.24906951,0.00054794,120]
[357057583,1743663154929,-500.0,0.00054794,120]
[357057584,1743663154970,-500.0,0.00054794,120]
[357057585,1743663155013,-500.0,0.00054794,120]
[357057586,1743663155056,-500.0,0.00054794,120]
[357057587,1743663155099,-2240.14,0.00054794,120]
[357057588,1743663155141,-326.82455773,0.00054794,120]
[357057589,1743663155181,-500.0,0.00054794,120]
[357057590,1743663155223,-2198.9,0.00054794,120]
[357057591,1743663155263,-500.0,0.00054794,120]
[357057592,1743663155305,-500.0,0.00054794,120]
[357057593,1743663155345,-500.0,0.00054794,120]
[357057594,1743663155386,-504.60232033,0.00054794,120]
[357057595,1743663155427,-220.03344334,0.00054794,120]
[357057596,1743663155470,-507.36909413,0.00054794,120]
[357057597,1743663155509,-500.0,0.00054794,120]
[357057598,1743663155550,-2803.95,0.00054794,120]
[357057599,1743663155592,-531.04822225,0.00054794,120]
[357057600,1743663155632,-2523.91,0.00054794,120]
[357057601,1743663155674,-500.0,0.00054794,120]
[357057602,1743663155713,-536.9837298,0.00054794,120]
[357057603,1743663155754,-500.0,0.00054794,120]
[357057604,1743663155793,-509.60819678,0.00054794,120]
[357057605,1743663155833,-518.84051538,0.00054794,120]
[357057606,1743663155874,-580.61580781,0.00054794,120]
[357057607,1743663155918,-500.0,0.00054794,120]
[357057608,1743663155959,-500.0,0.00054794,120]
[357057609,1743663156000,-500.0,0.00054794,120]
[357057610,1743663156043,-500.0,0.00054794,120]
[357057611,1743663156083,-500.0,0.00054794,120]
[357057612,1743663156123,-509.13269391,0.00054794,120]
[357057613,1743663156161,-521.51613722,0.00054794,120]
[357057614,1743663156203,-499.68614776,0.00054794,120]
[357057615,1743663156242,-500.0,0.00054794,120]
[357057616,1743663156283,-521.82835992,0.00054794,120]
[357057617,1743663156321,-227.25298128,0.00054794,120]
[357057618,1743663156363,-2778.43,0.00054794,120]
[357057619,1743663156407,-500.0,0.00054794,120]
[357057620,1743663156446,-500.0,0.00054794,120]
[357057621,1743663156487,-500.0,0.00054794,120]
[357057622,1743663156527,-500.0,0.00054794,120]
[357057623,1743663156708,-534.55971075,0.00054794,120]
[357057624,1743663156750,-500.0,0.00054794,120]
[357057625,1743663156790,-2578.04,0.00054794,120]
[357057626,1743663156841,-500.0,0.00054794,120]
[357057627,1743663156892,-500.0,0.00054794,120]
[357057628,1743663156934,-500.0,0.00054794,120]
[357057629,1743663156972,-500.0,0.00054794,120]
[357057630,1743663157012,-500.0,0.00054794,120]
[357057631,1743663157051,-554.78366847,0.00054794,120]
[357057632,1743663157092,-500.0,0.00054794,120]
[357057633,1743663157131,-500.0,0.00054794,120]
[357057634,1743663157169,-500.0,0.00054794,120]
[357057635,1743663157209,-500.0,0.00054794,120]
[357057636,1743663157259,-500.0,0.00054794,120]
[357057637,1743663157303,-500.0,0.00054794,120]
[357057638,1743663157345,-500.0,0.00054794,120]
[357057639,1743663157385,-2493.7,0.00054794,120]
[357057640,1743663157426,-500.0,0.00054794,120]
[357057641,1743663157466,-500.0,0.00054794,120]
[357057642,1743663157505,-500.0,0.00054794,120]
[357057643,1743663157547,-500.0,0.00054794,120]
[357057644,1743663157586,-2793.68,0.00054794,120]
[357057645,1743663157627,-516.70215165,0.00054794,120]
[357057646,1743663157666,-517.15075555,0.00054794,120]
[357057647,1743663157710,-500.0,0.00054794,120]
[357057648,1743663157751,-517.33183788,0.00054794,120]
[357057649,1743663157792,-2405.16,0.00054794,120]
[357057650,1743663157831,-523.04274094,0.00054794,120]
[357057651,1743663157874,-500.0,0.00054794,120]
[357057652,1743663157915,-524.68423588,0.00054794,120]
[357057653,1743663157958,-508.47084601,0.00054794,120]
[357057654,1743663157999,-3193.62,0.00054794,120]
[357057655,1743663158042,-500.0,0.00054794,120]
[357057656,1743663158085,-500.0,0.00054794,120]
[357057657,1743663158127,-500.0,0.00054794,120]
[357057658,1743663158169,-518.67793535,0.00054794,120]
[357057659,1743663158215,-504.65753712,0.00054794,120]
[357057660,1743663158258,-500.0,0.00054794,120]
[357057661,1743663158299,-512.65330724,0.00054794,120]
[357057662,1743663158344,-500.0,0.00054794,120]
[357057663,1743663158386,-3366.12,0.00054794,120]
[357057664,1743663158428,-500.0,0.00054794,120]
[357057665,1743663158467,-507.58878882,0.00054794,120]
[357057666,1743663158507,-500.0,0.00054794,120]
[357057667,1743663158548,-497.42170741,0.00054794,120]
[357057668,1743663158592,-505.29727342,0.00054794,120]
[357057669,1743663158632,-529.82501538,0.00054794,120]
[357057670,1743663158670,-416.46309588,0.00054794,120]
[357057671,1743663158708,-500.0,0.00054794,120]
[357057672,1743663158748,-3431.9,0.00054794,120]
[357057673,1743663158786,-2511.44,0.00054794,120]
[357057674,1743663158826,-540.88082945,0.00054794,120]
[357057675,1743663158866,-517.23398063,0.00054794,120]
[357057676,1743663158907,-523.60311441,0.00054794,120]
[357057677,1743663158948,-535.37654276,0.00054794,120]
[357057678,1743663158989,-500.0,0.00054794,120]
[357057679,1743663159027,-525.19239636,0.00054794,120]
[357057680,1743663159070,-2546.97,0.00054794,120]
[357057681,1743663159109,-2595.67,0.00054794,120]
[357057682,1743663159150,-500.0,0.00054794,120]
[357057683,1743663159188,-517.10328465,0.00054794,120]
[357057684,1743663159230,-500.0,0.00054794,60]
[357057685,1743663159274,-500.0,0.00054794,120]
[357057686,1743663159318,-500.0,0.00054794,120]
[357057687,1743663159360,-535.48971254,0.00054794,120]
[357057688,1743663159400,-500.0,0.00054794,120]
[357057689,1743663159441,-2244.41,0.00054794,120]
[357057690,1743663159480,-500.0,0.00054794,120]
[357057691,1743663159520,-500.0,0.00054794,120]
[357057692,1743663159560,-500.0,0.00054794,120]
[357057693,1743663159603,-500.0,0.00054794,120]
[357057694,1743663159643,-476.2457541,0.00054794,120]
[357057695,1743663159684,-500.0,0.00054794,120]
[357057696,1743663159724,-500.0,0.00054794,120]
[357057697,1743663159767,-500.0,0.00054794,120]
[357057698,1743663159808,-500.0,0.00054794,120]
[357057699,1743663159850,-500.0,0.00054794,120]
[357057700,1743663159890,-519.471749,0.00054794,120]
[357057701,1743663159934,-504.79273666,0.00054794,120]
[357057702,1743663159977,-500.0,0.00054794,120]
[357057703,1743663160021,-500.0,0.00054794,120]
[357057704,1743663160063,-500.0,0.00054794,120]
[357057705,1743663160108,-500.0,0.00054794,120]
[357057706,1743663160152,-536.31692595,0.00054794,120]
[357057707,1743663160194,-405.63698668,0.00054794,120]
[357057708,1743663160239,-517.22121522,0.00054794,120]
[357057709,1743663160287,-500.0,0.00054794,120]
[357057710,1743663160330,-536.22647675,0.00054794,120]
[357057711,1743663160372,-500.0,0.00054794,120]
[357057712,1743663160414,-554.3503176,0.00054794,120]
[357057713,1743663160457,-514.36626537,0.00054794,120]
[357057714,1743663160499,-500.0,0.00054794,120]
[357057715,1743663160540,-500.0,0.00054794,120]
[357057716,1743663160579,-3576.74,0.00054794,120]
[357057717,1743663160625,-516.94596898,0.00054794,120]
[357057718,1743663160666,-500.0,0.00054794,120]
[357057719,1743663160709,-575.08532372,0.00054794,120]
[357057720,1743663160750,-155.71,0.00054794,120]
[357057721,1743663160792,-510.82654421,0.00054794,120]
[357057722,1743663160833,-500.0,0.00054794,120]
[357057723,1743663160875,-500.0,0.00054794,120]
[357057724,1743663160916,-500.0,0.00054794,120]
[357057725,1743663160959,-2545.19,0.00054794,120]
[357057726,1743663160999,-500.0,0.00054794,120]
[357057727,1743663161042,-500.0,0.00054794,120]
[357057728,1743663161084,-500.0,0.00054794,120]
[357057729,1743663161276,-500.0,0.00054794,120]
[357057730,1743663161319,-1311.11,0.00054794,30]
[357057731,1743663161362,-500.0,0.00054794,120]
[357057732,1743663161402,-500.0,0.00054794,120]
[357057733,1743663161444,-2974.14,0.00054794,120]
[357057734,1743663161484,-500.0,0.00054794,120]
[357057735,1743663161525,-500.0,0.00054794,120]
[357057736,1743663161564,-500.0,0.00054794,120]
[357057737,1743663161605,-500.0,0.00054794,120]
[357057738,1743663161643,-500.0,0.00054794,120]
[357057739,1743663161683,-366.56809031,0.00054794,120]
[357057740,1743663161722,-533.47678937,0.00054794,120]
[357057741,1743663161762,-515.71411545,0.00054794,120]
[357057742,1743663161801,-294.80221998,0.00054794,120]
[357057743,1743663161843,-500.0,0.00054794,120]
[357057744,1743663161882,-546.09406626,0.00054794,120]
[357057745,1743663161925,-500.0,0.00054794,120]
[357057746,1743663161966,-500.0,0.00054794,120]
[357057747,1743663162009,-565.39372626,0.00054794,120]
[357057748,1743663162051,-500.0,0.00054794,120]
[357057749,1743663162092,-500.0,0.00054794,120]
[357057750,1743663162135,-500.0,0.00054794,120]
[357057751,1743663162178,-500.0,0.00054794,120]
[357057752,1743663162219,-500.0,0.00054794,120]
[357057753,1743663162261,-500.0,0.00054794,120]
[357057754,1743663162302,-500.0,0.00054794,120]
[357057755,1743663162344,-500.0,0.00054794,120]
[357057756,1743663162382,-500.09537026,0.00054794,120]
[357057757,1743663162425,-500.0,0.00054794,120]
[357057758,1743663162466,-500.0,0.00054794,120]
[357057759,1743663162508,-2344.59,0.00054794,120]
[357057760,1743663162549,-2876.09,0.00054794,120]
[357057761,1743663162592,-500.0,0.00054794,120]
[357057762,1743663162633,-500.0,0.00054794,120]
[357057763,1743663162675,-549.13531312,0.00054794,120]
[357057764,1743663162714,-500.0,0.00054794,120]
[357057765,1743663162755,-500.0,0.00054794,120]
[357057766,1743663162794,-509.60715937,0.00054794,120]
[357057767,1743663162841,-526.00181124,0.00054794,120]
[357057768,1743663162888,-500.0,0.00054794,120]
[357057769,1743663162939,-500.0,0.00054794,120]
[357057770,1743663162981,-500.0,0.00054794,120]
[357057771,1743663163024,-501.8900089,0.00054794,120]
[357057772,1743663163066,-500.0,0.00054794,120]
[357057773,1743663163110,-500.0,0.00054794,120]
[357057774,1743663163153,-2551.84,0.00054794,120]
[357057775,1743663163196,-494.05684782,0.00054794,120]
[357057776,1743663163237,-500.0,0.00054794,120]
[357057777,1743663163280,-529.22,0.00054794,120]
[357057778,1743663163320,-509.91092745,0.00054794,120]
[357057779,1743663163361,-501.39678672,0.00054794,120]
[357057780,1743663163401,-500.0,0.00054794,120]
[357057781,1743663163442,-500.0,0.00054794,120]
[357057782,1743663163481,-500.0,0.00054794,120]
[357057783,1743663163523,-547.2864643,0.00054794,120]
[357057784,1743663163566,-516.67707396,0.00054794,120]
[357057785,1743663163608,-500.0,0.00054794,120]
[357057786,1743663163649,-500.0,0.00054794,120]
[357057787,1743663163691,-505.97384992,0.00054794,120]
[357057788,1743663163730,-536.53122487,0.00054794,120]
[357057789,1743663163770,-500.0,0.00054794,120]
[357057790,1743663163809,-524.17160982,0.00054794,120]
[357057791,1743663163849,-500.0,0.00054794,120]
[357057792,1743663163888,-500.0,0.00054794,120]
[357057793,1743663163929,-435.39064961,0.00054794,120]
[357057794,1743663163970,-600.07832615,0.00054794,120]
[357057795,1743663164012,-565.19465876,0.00054794,120]
[357057796,1743663164054,-500.0,0.00054794,120]
[357057797,1743663164097,-500.0,0.00054794,120]
[357057798,1743663164143,-500.0,0.00054794,120]
[357057799,1743663164190,-514.34,0.00054794,120]
[357057800,1743663164234,-500.0,0.00054794,120]
[357057801,1743663164285,-500.0,0.00054794,120]
[357057802,1743663164332,-500.0,0.00054794,120]
[357057803,1743663164377,-528.35636489,0.00054794,120]
[357057804,1743663164424,-500.0,0.00054794,120]
[357057805,1743663164473,-619.39414547,0.00054794,120]
[357057806,1743663164518,-505.44230702,0.00054794,120]
[357057807,1743663164561,-2619.7,0.00054794,120]
[357057808,1743663164602,-505.38683928,0.00054794,120]
[357057809,1743663164642,-500.0,0.00054794,120]
[357057810,1743663164684,-1120.03,0.00054794,120]
[357057811,1743663164727,-222.20051051,0.00054794,120]
[357057812,1743663164765,-514.39570908,0.00054794,120]
[357057813,1743663164805,-528.56368206,0.00054794,120]
[357057814,1743663164843,-500.0,0.00054794,120]
[357057815,1743663164892,-520.45864711,0.00054794,120]
[357057816,1743663164934,-2157.55,0.00054794,120]
[357057817,1743663164977,-3237.94,0.00054794,120]
[357057818,1743663165018,-545.45299251,0.00054794,120]
[357057819,1743663165060,-500.0,0.00054794,120]
[357057820,1743663165102,-500.0,0.00054794,120]
[357057821,1743663165142,-509.54723762,0.00054794,120]
[357057822,1743663165183,-500.0,0.00054794,120]
[357057823,1743663165222,-500.0,0.00054794,120]
[357057824,1743663165262,-506.75076842,0.00054794,120]
[357057825,1743663165303,-500.0,0.00054794,120]
[357057826,1743663165344,-500.0,0.00054794,120]
[357057827,1743663165384,-500.0,0.00054794,120]
[357057828,1743663165426,-508.29088003,0.00054794,120]
[357057829,1743663165466,-518.18617475,0.00054794,120]
[357057830,1743663165508,-500.0,0.00054794,120]
[357057831,1743663165552,-500.0,0.00054794,120]
[357057832,1743663165596,-535.91403189,0.00054794,120]
[357057833,1743663165639,-500.0,0.00054794,120]
[357057834,1743663165809,-952.95,0.00054794,120]
[357057835,1743663165857,-500.0,0.00054794,120]
[357057836,1743663165899,-500.0,0.00054794,120]
[357057837,1743663165944,-515.04460164,0.00054794,120]
[357057838,1743663165984,-500.0,0.00054794,120]
[357057839,1743663166028,-521.83035294,0.00054794,120]
[357057840,1743663166070,-505.30357718,0.00054794,120]
[357057841,1743663166113,-500.0,0.00054794,120]
[357057842,1743663166156,-500.0,0.00054794,120]
[357057843,1743663166197,-2281.87,0.00054794,120]
[357057844,1743663166237,-500.0,0.00054794,120]
[357057845,1743663166281,-500.0,0.00054794,120]
[357057846,1743663166322,-513.07984248,0.00054794,120]
[357057847,1743663166363,-2878.83,0.00054794,120]
[357057848,1743663166402,-500.0,0.00054794,120]
[357057849,1743663166444,-500.0,0.00054794,120]
[357057850,1743663166485,-500.0,0.00054794,120]
[357057851,1743663166526,-512.11263104,0.00054794,120]
[357057852,1743663166567,-1000.0,0.00054794,120]
[357057853,1743663166608,-512.30113083,0.00054794,120]
[357057854,1743663166648,-513.5633873,0.00054794,120]
[357057855,1743663166690,-500.0,0.00054794,120]
[357057856,1743663166730,-506.69598158,0.00054794,120]
[357057857,1743663166770,-505.6096135,0.00054794,120]
[357057858,1743663166810,-1833.37,0.00054794,120]
[357057859,1743663166851,-507.33841522,0.00054794,120]
[357057860,1743663166891,-500.0,0.00054794,120]
[357057861,1743663166932,-500.0,0.00054794,120]
[357057862,1743663166972,-513.98977399,0.00054794,120]
[357057863,1743663167014,-509.25451186,0.00054794,120]
[357057864,1743663167055,-511.98856346,0.00054794,120]
[357057865,1743663167096,-898.03602258,0.00054794,30]
[357057866,1743663167136,-515.84607847,0.00054794,120]
[357057867,1743663167177,-500.0,0.00054794,120]
[357057868,1743663167217,-500.0,0.00054794,120]
[357057869,1743663167261,-520.0840942,0.00054794,120]
[357057870,1743663167300,-573.43046427,0.00054794,120]
[357057871,1743663167344,-201.96760361,0.00054794,120]
[357057872,1743663167383,-500.0,0.00054794,120]
[357057873,1743663167424,-519.48965179,0.00054794,120]
[357057874,1743663167465,-569.64513946,0.00054794,120]
[357057875,1743663167507,-500.0,0.00054794,120]
[357057876,1743663167547,-524.95192424,0.00054794,120]
[357057877,1743663167590,-500.0,0.00054794,120]
[357057878,1743663167630,-500.0,0.00054794,120]
[357057879,1743663167672,-500.0,0.00054794,120]
[357057880,1743663167714,-500.0,0.00054794,120]
[357057881,1743663167755,-516.65925197,0.00054794,120]
[357057882,1743663167793,-500.0,0.00054794,120]
[357057883,1743663167835,-500.0,0.00054794,120]
[357057884,1743663167873,-502.7447106,0.00054794,120]
[357057885,1743663167915,-500.0,0.00054794,120]
[357057886,1743663167958,-500.0,0.00054794,120]
[357057887,1743663168001,-534.93338614,0.00054794,120]
[357057888,1743663168044,-500.0,0.00054794,120]
[357057889,1743663168089,-538.55389929,0.00054794,120]
[357057890,1743663168134,-2316.04,0.00054794,120]
[357057891,1743663168177,-191.67783481,0.00054794,120]
[357057892,1743663168224,-500.0,0.00054794,120]
[357057893,1743663168268,-500.0,0.00054794,120]
[357057894,1743663168312,-500.0,0.00054794,120]
[357057895,1743663168360,-517.83048857,0.00054794,120]
[357057896,1743663168404,-500.0,0.00054794,120]
[357057897,1743663168448,-531.45021084,0.00054794,120]
[357057898,1743663168492,-500.0,0.00054794,120]
[357057899,1743663168538,-500.0,0.00054794,120]
[357057900,1743663168580,-500.0,0.00054794,120]
[357057901,1743663168623,-500.0,0.00054794,120]
[357057902,1743663168666,-526.99841439,0.00054794,120]
[357057903,1743663168710,-531.9699513,0.00054794,120]
[357057904,1743663168751,-500.0,0.00054794,120]
[357057905,1743663168794,-500.0,0.00054794,120]
[357057906,1743663168836,-529.26187168,0.00054794,120]
[357057907,1743663168878,-500.0,0.00054794,120]
[357057908,1743663168919,-2955.65,0.00054794,120]
[357057909,1743663168964,-500.0,0.00054794,120]
[357057910,1743663169007,-547.86986443,0.00054794,120]
[357057911,1743663169052,-519.4201342,0.00054794,120]
[357057912,1743663169097,-500.0,0.00054794,120]
[357057913,1743663169144,-500.0,0.00054794,120]
[357057914,1743663169189,-2685.71,0.00054794,120]
[357057915,1743663169232,-224.37816224,0.00054794,120]
[357057916,1743663169278,-3174.55,0.00054794,120]
[357057917,1743663169319,-479.3738828,0.00054794,120]
[357057918,1743663169362,-500.0,0.00054794,120]
[357057919,1743663169404,-500.0,0.00054794,120]
[357057920,1743663169443,-502.75031849,0.00054794,120]
[357057921,1743663169485,-500.0,0.00054794,120]
[357057922,1743663169525,-154.05270403,0.00054794,120]
[357057923,1743663169566,-500.0,0.00054794,120]
[357057924,1743663169607,-500.0,0.00054794,120]
[357057925,1743663169647,-500.0,0.00054794,120]
[357057926,1743663169687,-500.0,0.00054794,120]
[357057927,1743663169728,-3213.69,0.00054794,120]
[357057928,1743663169768,-500.0,0.00054794,120]
[357057929,1743663169809,-500.0,0.00054794,120]
[357057930,1743663169850,-500.0,0.00054794,120]
[357057931,1743663169893,-517.70597798,0.00054794,120]
[357057932,1743663169934,-500.0,0.00054794,120]
[357057933,1743663169977,-621.02966862,0.00054794,120]
[357057934,1743663170018,-500.0,0.00054794,120]
[357057935,1743663170062,-1000.0,0.00054794,120]
[357057936,1743663170103,-2781.44,0.00054794,120]
[357057937,1743663170143,-507.83689556,0.00054794,120]
[357057938,1743663170185,-504.86915746,0.00054794,120]
[357057939,1743663170229,-476.18291359,0.00054794,120]
[357057940,1743663170417,-770.49,0.00054794,120]
[357057941,1743663170459,-3202.74,0.00054794,120]
[357057942,1743663170501,-910.1,0.00054794,120]
[357057943,1743663170546,-500.0,0.00054794,120]
[357057944,1743663170588,-500.0,0.00054794,120]
[357057945,1743663170627,-501.98829718,0.00054794,120]
[357057946,1743663170669,-500.0,0.00054794,120]
[357057947,1743663170709,-500.0,0.00054794,120]
[357057948,1743663170751,-661.3,0.00054794,120]
[357057949,1743663170790,-504.02289381,0.00054794,120]
[357057950,1743663170831,-803.22,0.00054794,120]
[357057951,1743663170873,-500.0,0.00054794,120]
[357057952,1743663170914,-2914.69,0.00054794,120]
[357057953,1743663170955,-510.54156621,0.00054794,120]
[357057954,1743663170994,-500.0,0.00054794,120]
[357057955,1743663171036,-506.75093538,0.00054794,120]
[357057956,1743663171076,-500.0,0.00054794,120]
[357057957,1743663171117,-500.0,0.00054794,120]
[357057958,1743663171158,-500.0,0.00054794,120]
[357057959,1743663171200,-508.10498885,0.00054794,120]
[357057960,1743663171241,-500.0,0.00054794,120]
[357057961,1743663171284,-500.0,0.00054794,120]
[357057962,1743663171324,-500.0,0.00054794,120]
[357057963,1743663171367,-500.0,0.00054794,120]
[357057964,1743663171407,-1359.71,0.00054794,120]
[357057965,1743663171448,-2921.81,0.00054794,120]
[357057966,1743663171493,-3234.63,0.00054794,120]
[357057967,1743663171534,-2420.85,0.00054794,120]
[357057968,1743663171573,-500.0,0.00054794,120]
[357057969,1743663171614,-506.45259532,0.00054794,120]
[357057970,1743663171654,-500.0,0.00054794,120]
[357057971,1743663171695,-513.9618037,0.00054794,120]
[357057972,1743663171735,-507.60868284,0.00054794,120]
[357057973,1743663171777,-500.0,0.00054794,120]
[357057974,1743663171817,-531.5461083,0.00054794,120]
[357057975,1743663171858,-571.26911034,0.00054794,120]
[357057976,1743663171898,-500.0,0.00054794,120]
[357057977,1743663171940,-855.3,0.00054794,120]
[357057978,1743663171982,-500.0,0.00054794,120]
[357057979,1743663172024,-500.0,0.00054794,120]
[357057980,1743663172065,-503.69863186,0.00054794,120]
[357057981,1743663172108,-500.0,0.00054794,120]
[357057982,1743663172148,-500.0,0.00054794,120]
[357057983,1743663172190,-500.0,0.00054794,120]
[357057984,1743663172229,-3201.0,0.00054794,120]
[357057985,1743663172270,-500.0,0.00054794,120]
[357057986,1743663172309,-500.0,0.00054794,120]
[357057987,1743663172348,-500.0,0.00054794,120]
[357057988,1743663172388,-500.0,0.00054794,120]
[357057989,1743663172430,-500.0,0.00054794,120]
[357057990,1743663172472,-500.0,0.00054794,120]